Cogmind - Beta 13 @@@ ROGUE MODE // 2024.03.31 @ 12:49:32 Player: MPD78 Result: Self-destructed Performance ------------- Evolutions (1) 500 Regions Visited (4) 800 Robots Destroyed (10) 50 Value Destroyed (204) 204 Prototype IDs (0) 0 Alien Tech Used (0) 0 Bonus (0) 0 TOTAL SCORE: 1554 Bonus ------- None Cogmind --------- Core Integrity 176/400 Matter 260/300 Energy 98/100 System Corruption 0% Temperature Cool (0) Movement Core (50) Location -9/Mines Parts ------- > --- POWER (2) -------- (None) > --- PROPULSION (2) --- (None) > --- UTILITY (3) ------ Machine Analyzer > --- WEAPON (2) ------- (None) > --- INVENTORY (5) ---- Light Ion Engine Aluminum Leg Aluminum Leg Flight Unit Peak State ------------ > --- POWER ------------ Ion Engine > --- PROPULSION ------- Light Treads Light Treads > --- UTILITY ---------- Machine Analyzer > --- WEAPON ----------- Light Assault Rifle Light Assault Rifle > --- INVENTORY -------- Light Ion Engine Aluminum Leg Aluminum Leg Flight Unit Mining Laser [Rating: 8] Favorites ----------- Power Ion Engine Engine Ion Engine Propulsion Light Treads Treads Light Treads Leg Aluminum Leg Utility Huge Storage Unit Storage Huge Storage Unit Processor Machine Analyzer Weapon Light Assault Rifle Energy Gun Small Laser Ballistic Gun Light Assault Rifle Special Weapon Mining Laser Build | -11 -10 -10 -9 -9 ------- Run | Yrd Mat Min Mat Min Slots Evolved 2 | . . . 2 . Power 1 | . . . 1 . Propulsion . | . . . . . Utility 1 | . . . 1 . Weapon . | . . . . . Parts Attached 17 | 2 12 . 2 1 Power 2 | . 2 . . . Engine 2 | . 2 . . . Core . | . . . . . Reactor . | . . . . . Propulsion 5 | . 5 . . . Treads 3 | . 3 . . . Leg 2 | . 2 . . . Wheel . | . . . . . Hover . | . . . . . Flight . | . . . . . Utility 3 | 1 1 . 1 . Device . | . . . . . Storage 2 | 1 1 . . . Processor 1 | . . . 1 . Hackware . | . . . . . Protection . | . . . . . Artifact . | . . . . . Weapon 7 | 1 4 . 1 1 Energy Gun 1 | 1 . . . . Energy Cannon . | . . . . . Ballistic Gun 5 | . 4 . 1 . Ballistic Cannon . | . . . . . Launcher . | . . . . . Special Weapon 1 | . . . . 1 Impact Weapon . | . . . . . Slashing Weapon . | . . . . . Piercing Weapon . | . . . . . Special Melee Weapon . | . . . . . Unidentified Prototypes . | . . . . . Parts Lost 6 | . . . . 6 Power 1 | . . . . 1 Propulsion 2 | . . . . 2 Utility . | . . . . . Weapon 3 | . . . . 3 Highest Loss Streak 6 | . . . . 6 To Critical Strikes . | . . . . . Average Slot Usage (%) 67 | . 72 85 57 36 Engine 11 | . 11 14 11 5 Treads 21 | . 23 28 22 7 Storage 9 | . 14 14 . . Processor 1 | . . . 2 11 Ballistic Gun 21 | . 21 28 22 11 Naked Turns . | . . . . . Heaviest Build 87 | 6 87 87 87 7 Greatest Support 40 | 3 40 40 40 40 Greatest Overweight (x) 2 | 1 2 2 2 1 Average Overweight (x) . | . 1 2 . . Largest Inventory Capacity 25 | 8 25 25 25 5 Average Capacity 15 | 7 19 25 6 5 Most Carried 8 | 8 8 7 7 5 Average Carried 5 | 6 5 6 5 4 Final Capacity 25 | 8 25 25 5 5 Final Carried 8 | 8 6 7 5 4 Class Distribution -------------------- 100% | Mutant Dominant Class ---------------- Mutant | -10/Materials Mutant | -10/Mines Mutant | -9/Materials Mutant | -9/Mines Resources | -11 -10 -10 -9 -9 ----------- Run | Yrd Mat Min Mat Min Matter Collected 372 | 220 28 65 50 9 Remotely . | . . . . . Salvage Created 246 | . 126 38 50 32 Parts 21 | . 7 6 5 3 Haulers Intercepted . | . . . . . Recyclers Shooed 1 | . . 1 . . Parts Field Recycled . | . . . . . Retrieved Matter . | . . . . . Parts Self-Destructed . | . . . . . Prevented . | . . . . . Kills | -11 -10 -10 -9 -9 ------- Run | Yrd Mat Min Mat Min Combat Hostiles Destroyed 9 | . 2 3 3 1 Guns 8 | . 2 3 3 . Cannons 1 | . . . . 1 Classes Destroyed 3 | . 2 1 . . Watcher 1 | . 1 . . . Swarmer 6 | . . 3 3 . Grunt 3 | . 2 . . 1 Best Kill Streak 3 | . 2 3 3 1 Combat Bots Only 3 | . 2 3 3 1 Max Kills in Single Turn 2 | . 1 1 2 1 Gunslinging . | . . . . . Exploded . | . . . . . Melee . | . . . . . Uniques/NPCs Destroyed . | . . . . . Combat | -11 -10 -10 -9 -9 -------- Run | Yrd Mat Min Mat Min Hostile Shots Fired 90 | . 14 15 26 35 Missed 22 | . 5 3 8 6 Damage Taken 827 | . 129 87 141 470 Core 288 | . 30 34 35 189 Absorbed by Shields . | . . . . . Core Remaining (%) 87 | 100 . 74 . . Volleys Fired 45 | . 12 11 10 12 Largest 2 | . 2 2 2 2 Hottest 100 | . 40 40 40 100 Shots Fired 80 | . 24 22 20 14 Gun 77 | . 24 22 20 11 Cannon . | . . . . . Launcher . | . . . . . Special 3 | . . . . 3 Kinetic 77 | . 24 22 20 11 Thermal 3 | . . . . 3 Explosive . | . . . . . Electromagnetic . | . . . . . Robot Hit Streak 6 | . 6 3 3 3 Robot Miss Streak 5 | . 2 5 4 5 Penetration Max . | . . . . . Secondary Targets 2 | . 1 1 . . Max Gunslinging Chain 1 | . 1 1 . . Shots Hit Robots 39 | . 16 9 9 5 Core Hits 20 | . 9 3 4 4 Critical Kills . | . . . . . Critical Parts Destroyed . | . . . . . Critical Strikes . | . . . . . Melee Attacks . | . . . . . Impact . | . . . . . Slashing . | . . . . . Piercing . | . . . . . Sneak Attacks . | . . . . . Combat Hostiles . | . . . . . Follow-up Attacks . | . . . . . Damage Inflicted 345 | . 121 90 80 54 Guns 315 | . 121 84 80 30 Cannons . | . . . . . Explosions . | . . . . . Melee . | . . . . . Ramming 6 | . . 6 . . Kinetic 315 | . 121 84 80 30 Thermal 24 | . . . . 24 Explosive . | . . . . . Electromagnetic . | . . . . . Impact . | . . . . . Slashing . | . . . . . Piercing . | . . . . . Highest Corruption . | . . . . . Average Corruption . | . . . . . Corruption Purged . | . . . . . Corruption Blocked . | . . . . . Overload Shots . | . . . . . Overflow Damage . | . . . . . Projectiles . | . . . . . Explosions . | . . . . . Melee . | . . . . . Knockbacks . | . . . . . Impact . | . . . . . Kinetic . | . . . . . Secondary . | . . . . . Self-Inflicted Damage . | . . . . . Shots . | . . . . . Rammed 1 | . . 1 . . Targets Rammed 1 | . . 1 . . Kicked . | . . . . . Crushed . | . . . . . Highest Temperature 25 | . 25 . . 3 Average Temperature 9 | . 11 . . 2 Received Heat Transfer 132 | . 72 . . 60 Siege Activations . | . . . . . Robots Corrupted . | . . . . . Combat Hostiles . | . . . . . Parts Fried . | . . . . . Impact Corruptions . | . . . . . Robots Melted . | . . . . . Combat Hostiles . | . . . . . Parts Melted . | . . . . . Heat Transferred 50 | . . . . 50 Parts Sabotaged . | . . . . . Parts Stolen . | . . . . . Parts Stripped . | . . . . . Power Chain Reactions . | . . . . . Alert | -11 -10 -10 -9 -9 ------- Run | Yrd Mat Min Mat Min Peak Influence 105 | . 57 92 105 40 Initial 40 | . . 22 35 40 Average 38 | . 20 64 74 24 Maximum Alert Level . | . . . . . Low Security (%) 100 | 100 100 100 100 100 Level 1 . | . . . . . Level 2 . | . . . . . Level 3 . | . . . . . Level 4 . | . . . . . Level 5 . | . . . . . High Security . | . . . . . Max Security . | . . . . . Squads Dispatched 1 | . . . 1 . Investigation . | . . . . . Extermination . | . . . . . Reinforcement 1 | . . . 1 . Assault . | . . . . . Garrison . | . . . . . Intercept . | . . . . . Searches Triggered . | . . . . . Construction Impeded . | . . . . . Haulers Reinforced . | . . . . . Active Scanning Responses . | . . . . . Cargo Convoy Interrupts . | . . . . . Stealth | -11 -10 -10 -9 -9 --------- Run | Yrd Mat Min Mat Min Distress Signals 3 | . . . 2 1 Communications Jammed . | . . . . . Distress Signals . | . . . . . Times Spotted 18 | . 3 3 3 9 Peak Tracking Total 4 | . 2 3 3 4 Tactical Retreats . | . . . . . Traps | -11 -10 -10 -9 -9 ------- Run | Yrd Mat Min Mat Min Traps Triggered 3 | . 3 . . . Indirectly . | . . . . . Trap Hack Attempts . | . . . . . Triggered . | . . . . . Disarmed . | . . . . . Reprogrammed . | . . . . . Reused . | . . . . . Traps Extracted . | . . . . . Installed . | . . . . . Triggered . | . . . . . Machines | -11 -10 -10 -9 -9 ---------- Run | Yrd Mat Min Mat Min Machines Disabled . | . . . . . Max in Single Turn . | . . . . . Machines Repaired . | . . . . . Machines Dismantled . | . . . . . Machines Sabotaged . | . . . . . Overloaded Fab Kills . | . . . . . Hacking | -11 -10 -10 -9 -9 --------- Run | Yrd Mat Min Mat Min Machines Accessed 1 | . 1 . . . Terminals 1 | . 1 . . . Fabricators . | . . . . . Repair Stations . | . . . . . Recycling Units . | . . . . . Scanalyzers . | . . . . . Garrison Access . | . . . . . Total Hacks 1 | . 1 . . . Successful 1 | . 1 . . . Failed . | . . . . . Catastrophic . | . . . . . Database Lockouts . | . . . . . Manual . | . . . . . Terminals 1 | . 1 . . . Fabricators . | . . . . . Repair Stations . | . . . . . Recycling Units . | . . . . . Scanalyzers . | . . . . . Garrison Access . | . . . . . Terminal Hacks 1 | . 1 . . . Record 1 | . 1 . . . Fabricator Hacks . | . . . . . Repair Station Hacks . | . . . . . Recycling Unit Hacks . | . . . . . Scanalyzer . | . . . . . Garrison Access Hacks . | . . . . . Unauthorized Hacks . | . . . . . Terminals . | . . . . . Fabricators . | . . . . . Repair Stations . | . . . . . Recycling Units . | . . . . . Scanalyzers . | . . . . . Garrison Access . | . . . . . Data Cores Recovered . | . . . . . Used . | . . . . . Hacking Detections . | . . . . . Full Trace Events . | . . . . . Feedback Events . | . . . . . Feedback Blocked . | . . . . . Robot Schematics Acquired . | . . . . . Robots Built . | . . . . . Authchips . | . . . . . Time . | . . . . . Total Robot Build Rating . | . . . . . Part Schematics Acquired . | . . . . . Parts Built . | . . . . . Authchips . | . . . . . Time . | . . . . . Total Part Build Rating . | . . . . . Parts Repaired . | . . . . . Time . | . . . . . Parts Recycled . | . . . . . Recycled Matter . | . . . . . Retrieved Matter . | . . . . . Retrieved Components . | . . . . . Parts Scanalyzed . | . . . . . Part Schematics Acquired . | . . . . . Parts Damaged . | . . . . . Bothacking | -11 -10 -10 -9 -9 ------------ Run | Yrd Mat Min Mat Min Used RIF Installer . | . . . . . Robots Hacked . | . . . . . Non-combat . | . . . . . Combat . | . . . . . Robot Hacks Applied . | . . . . . Relay Couplers Released . | . . . . . Fabnet Peak Effective % . | . . . . . Robots Rewired . | . . . . . Allies Hacked . | . . . . . Hacks Repelled . | . . . . . Allies | -11 -10 -10 -9 -9 -------- Run | Yrd Mat Min Mat Min Total Allies . | . . . . . Largest Group . | . . . . . Highest-Rated Group . | . . . . . Highest-Rated Ally . | . . . . . Total Orders . | . . . . . Ally Attacks . | . . . . . Total Damage . | . . . . . Kills . | . . . . . Allies Corrupted . | . . . . . Allies Melted . | . . . . . Intel | -11 -10 -10 -9 -9 ------- Run | Yrd Mat Min Mat Min Robot Analysis Total . | . . . . . Derelict Logs Recovered 1 | . . . . 1 Drone Launches . | . . . . . Drone Recoveries . | . . . . . Exploration | -11 -10 -10 -9 -9 ------------- Run | Yrd Mat Min Mat Min Turns Passed 813 | 75 311 164 164 99 Spaces Moved 398 | 68 116 42 80 92 Core 173 | 68 32 . . 73 Treads 225 | . 84 42 80 19 Legs . | . . . . . Wheels . | . . . . . Hover . | . . . . . Flight . | . . . . . Fastest Speed 50 | 50 100 320 160 50 Average Speed 165 | 93 222 320 170 73 Slowest Speed 320 | 100 320 320 320 160 Overloaded Moves . | . . . . . Propulsion Burnouts . | . . . . . Robots Hopped . | . . . . . Cave-ins Triggered . | . . . . . Exploration Rate (%) 16 | 5 24 12 12 31 Regions Visited 4 Branch Regions 2 Pre-discovered Areas . | . . . . . Known Exits Taken . | . . . . . Unknown Exits Taken 4 | 1 1 1 1 . Scrap Searched 1 | . . 1 . . Spaces Dug . | . . . . . Terrain Destroyed . | . . . . . Melee . | . . . . . Projectile . | . . . . . AOE . | . . . . . Terrain Rammed . | . . . . . Walls Destroyed . | . . . . . Machines Disabled . | . . . . . Actions | -11 -10 -10 -9 -9 --------- Run | Yrd Mat Min Mat Min Total 483 | 78 153 54 93 105 Wait 4 | . 4 . . . Move 394 | 67 115 41 79 92 Hop . | . . . . . Pick Up 17 | 9 7 1 . . Fast Attach 2 | 1 . . 1 . Attach 14 | 1 12 . . 1 Detach 3 | . 3 . . . Swap 1 | . . . 1 . Drop 2 | . . . 2 . Fire 45 | . 12 11 10 12 Melee . | . . . . . Ram . | . . . . . Kick . | . . . . . Crush 1 | . . 1 . . Escape Stasis . | . . . . . Rewire . | . . . . . Trap . | . . . . . Miscellaneous . | . . . . . Route ------- -11/Scrapyard -10/Materials -10/Mines -9/Materials -9/Mines (discovered 1 exit: Mat) History --------- Turn | Location | Event 28 | -11/Scrapyard | Discovered new exit (range 15) 76 | -11/Scrapyard | Entered Materials 310 | -10/Materials | Build established: Mutant 318 | -10/Materials | Discovered new exit (range 16) 387 | -10/Materials | Entered Mines 475 | -10/Mines | Discovered new exit (range 8) 551 | -10/Mines | Entered Materials 551 | -9/Materials | Evolved 2 slots: Power x1, Utility x1 669 | -9/Materials | Discovered new exit (range 16) 715 | -9/Materials | Entered Mines 716 | -9/Mines | Assembled infested the area 721 | -9/Mines | Assisted by a Guerilla fighting off Assembled 775 | -9/Mines | Identified exit to Materials 807 | -9/Mines | Core integrity fell below 50% 814 | -9/Mines | Self-destructed Last Messages --------------- 00756_ U-05 Engineer lays Concrete. 00756_ as-25104 suffers critical hit (Destroy). 00756_ as-25104 destroyed. 00757_ U-05 Engineer lays Concrete. 00759_ U-05 Engineer builds a Wall. 00760_ HV Slug penetrates Earth. 00761_ Ion Engine destroyed. 00762_ HV Slug penetrates as-40247. 00762_ as-40247 destroyed. 00762_ U-05 Engineer lays Concrete. 00763_ Acquired 7 matter. 00763_ U-05 Engineer lays Concrete. 00764_ Acquired 2 matter. 00765_ U-05 Engineer lays Concrete. 00770_ The unstable cave ceiling collapses. 00775_ Acquired derelict log, extracted data. 00777_ Lgt. Assault Rifle destroyed. 00783_ G-47 Trooper destroyed. 00789_ Mining Laser destroyed. 00799_ K-01 Serf collects debris. Map ----- +----------------------------------------------------+ | ?????????????????????????# """ #????????????????? | | ?????????????????????????# """ #????????????????? | | ?????????????????????????# ??????????????????? | | ????????????????????????## ???????????????????? | | ????????????????????????# ????????????????????? | | ????????????????????????# =#??##############?????? | | ????????????????????????#!%#### ""?? | | ??????? ?????????????# [ ### ########?????? | | ?????## ????????????# ######?# #?#####??????? | | ?????? ????????????# #??????# ### ##?????? | | ??????# ##???######## #??????# ##????? | | ???????# #"???# #??????#### #????? | | ???????# "#??# $ #?????????## #????? | | ???????## ##?# ########?????????## #????? | | ???????###% ### #???????????????## ##???? | | ??????## # %%! ## #??????????????## ##??? | | ??????## %% #????????????### #??? | | ??????# $ ##??????????## #??? | | ???????# ##????###### #??? | | ???????# #????# ##??? | | ???????# #????# ##### ##???? | | ???????## #????# #???### #????? | | ????????# # ##?#### #?????### #????? | | ????????## "##??# #???????# # ##????? | | ?????????# ###???#s####???????# ####?????? | | ?????????# ########@#?????????? #????????? | | ?????????# ##?# k #?????????? #????????? | | ?????????# ###??# ######?????????? ????????? | | ?????????# #?????????????????????? ????????? | | ?????????##% ##?????????????????????? ???????? | | ??????????# #???????????????????????### ???????? | | ??????????# #??????????????????????????# ??????? | | ??????????# #??????????????????????????? ???????? | | ??????????# #???????????????????????????????????? | | ??????????# ###?????????????????????????????????? | | ?????###### ##????????????????????????????????? | | ?????# #????????????????????????????????? | | ?????# #### #### #???????????????????????????? | | ??????????# #?????????????????????????? | | ??????????## #?????????????????????????? | | ???????????###### #### #?????????????????????????? | | ????????????????? #??????????????????????????????? | | ??????????????????#??????????????????????????????? | | ?????????????????????????????????????????????????? | | ?????????????????????????????????????????????????? | | ?????????????????????????????????????????????????? | | ?????????????????????????????????????????????????? | | ?????????????????????????????????????????????????? | | ?????????????????????????????????????????????????? | | ?????????????????????????????????????????????????? | +----------------------------------------------------+ Best States ------------- Heat Dissipation 28 Energy Generation 10 Energy Capacity 250 Matter Stores 300 Matter Capacity 300 Sight Range 16 Terrain Scan Density 10 Evasion (%) 50 Recoil Reduction 2 Item Schematics ----------------- None Robot Schematics ------------------ None Fabricated ------------ Nothing Alien Tech Used ----------------- None Achievements -------------- None Challenges ------------ None Game ------ Seed SwarmDispersionClaw Manual? 0 Play Time 00:17:07 Cumulative 1.5 hours Start 2024.03.31 @ 12:34:16 End 2024.03.31 @ 12:49:32 Sessions 1 Manual Loads 0 Difficulty Rogue Special Mode None Game No. 5 Rogue 5 Adventurer 0 Explorer 0 Win Type - Total 0 Types 0/0/0/0/0/0/0/0/0 Lore% 1 Gallery% 3 Achievement% 3 Wizard Run 0 Options --------- Layout 1 ASCII 0 Keyboard 0 Movement Mouse Keybinds 0 Fullscreen 1 Font 28/SmallcapsGlow Map View 50x40 Zoom Use 0% Tactical HUD 1 Map Filters NONE Filters NONE Steam 1 RUN: 7d30ba98-f8cb-4f99-8e6e-c70afd0f818b